[Event "GER-ch Youth U18w 2019"]
[Site "Willingen"]
[Date "2019.06.09"]
[Round "1.1"]
[White "Fock, Sana"]
[Black "Schulze, Lara"]
[Result "0-1"]
[ECO "B22"]
[WhiteElo "1796"]
[BlackElo "2160"]
[Annotator "NA"]
[PlyCount "68"]
[EventDate "2019.06.07"]
[EventType "swiss"]
[EventRounds "9"]
[EventCountry "GER"]
[SourceTitle "playchess.com"]
[Source "ChessBase"]
[SourceQuality "1"]
[TimeControl "40/5400+30:1800+30"]

1. e4 {[%emt 0:00:00]} c5 {[%emt 0:00:00]} 2. c3 {[%emt 0:00:00]} Nf6 {[%emt 0:00:00]} 3. e5 {[%emt 0:00:00]} Nd5 {[%emt 0:00:00]} 4. d4 {[%emt 0:00:00]} cxd4 {[%emt 0:00:00]} 5. cxd4 {[%emt 0:00:00]} d6 {[%emt 0:00:38]} 6. Nf3 {[%emt 0:00:08]} Nc6 {[%emt 0:00:06]} 7. Bc4 {[%emt 0:00:28]} Nb6 {[%emt 0:00:19]} 8. Bb3 {[%emt 0:00:09]} dxe5 {[%emt 0:00:20]} 9. d5 {[%emt 0:02:47]} Na5 {[%emt 0:00:24]} 10. Nc3 {[%emt 0:01:03]} f6 {[%emt 0:00:17]} 11. Be3 {[%emt 0:06:21]} Kf7 {[%emt 0:00:38]} 12. O-O {[%emt 0:08:33]} Nxb3 {[%emt 0:01:07]} 13. Qxb3 {[%emt 0:02:04]} e6 {[%emt 0:00:45]} 14. Bxb6 {[%emt 0:08:29]} Qxb6 {[%emt 0:09:43]} 15. Qxb6 {[%emt 0:05:35]} axb6 {[%emt 0:00:06]} 16. Rfd1 {[%emt 0:03:57]} Bb4 {[%emt 0:21:52]} 17. Nb5 {[%emt 0:15:07]} Bd7 {[%emt 0:14:41]} 18. dxe6+ {[%emt 0:09:25]} Bxe6 {[%emt 0:00:40]} 19. Nc7 {[%emt 0:05:15]} Rxa2 {[%emt 0:11:53]} 20. Nxe6 {[%emt 0:03:58]} Rxa1 {[%emt 0:00:09]} 21. Neg5+ {[%emt 0:02:05]} fxg5 {[%emt 0:00:51]} 22. Rxa1 {[%emt 0:00:11]} Kf6 {[%emt 0:02:29]} 23. h3 {[%emt 0:03:08]} Rc8 {[%emt 0:09:12]} 24. Nh2 {[%emt 0:07:33]} Rc2 {[%emt 0:03:54]} 25. Ng4+ {[%emt 0:01:59]} Ke6 {[%emt 0:00:06]} 26. Rb1 {[%emt 0:01:39]} Bc5 {[%emt 0:02:55]} 27. Kf1 {[%emt 0:04:32]} h5 {[%emt 0:02:42]} 28. Ne3 {[%emt 0:00:06]} Bxe3 {[%emt 0:00:30]} 29. fxe3 {[%emt 0:00:07]} Kf5 {[%emt 0:02:01]} 30. b4 {[%emt 0:02:24]} Ke4 {[%emt 0:04:39]} 31. b5 {[%emt 0:03:34]} Kxe3 {[%emt 0:00:34]} 32. Rb3+ {[%emt 0:01:02]} Kd4 {[%emt 0:04:05]} 33. Rg3 {[%emt 0:01:01]} g4 {[%emt 0:05:05]} 34. hxg4 {[%emt 0:01:25]} Rc3 {[%emt 0:01:05] normal} 0-1

[Event "GER-ch Youth U18w 2019"]
[Site "Willingen"]
[Date "2019.06.09"]
[Round "1.2"]
[White "Ziegenfuss, Antonia"]
[Black "Mundt, Alexandra"]
[Result "1-0"]
[ECO "A52"]
[WhiteElo "2111"]
[BlackElo "1797"]
[Annotator "NA"]
[PlyCount "99"]
[EventDate "2019.06.07"]
[EventType "swiss"]
[EventRounds "9"]
[EventCountry "GER"]
[SourceTitle "playchess.com"]
[Source "ChessBase"]
[SourceQuality "1"]
[TimeControl "40/5400+30:1800+30"]

1. d4 {[%emt 0:00:00]} Nf6 {[%emt 0:00:00]} 2. c4 {[%emt 0:00:00]} e5 {[%emt 0:00:00]} 3. dxe5 {[%emt 0:00:08]} Ng4 {[%emt 0:00:00]} 4. Nc3 {[%emt 0:01:29]} Nxe5 {[%emt 0:00:06]} 5. e3 {[%emt 0:00:29]} Bb4 {[%emt 0:00:47]} 6. Bd2 {[%emt 0:02:33]} d6 {[%emt 0:03:23]} 7. a3 {[%emt 0:10:09]} Bxc3 {[%emt 0:01:45]} 8. Bxc3 {[%emt 0:00:18]} a5 {[%emt 0:01:50]} 9. Be2 {[%emt 0:08:41]} O-O {[%emt 0:10:19]} 10. Nf3 {[%emt 0:09:13]} Nbc6 {[%emt 0:02:01]} 11. O-O {[%emt 0:03:54]} a4 {[%emt 0:03:57]} 12. Nxe5 {[%emt 0:07:49]} Nxe5 {[%emt 0:05:44]} 13. f4 {[%emt 0:05:14]} Nc6 {[%emt 0:01:06]} 14. Rf3 {[%emt 0:05:59]} f6 {[%emt 0:07:15]} 15. Qd5+ {[%emt 0:06:16]} Kh8 {[%emt 0:01:08]} 16. Bd3 {[%emt 0:05:19]} Qe8 {[%emt 0:11:18]} 17. Rg3 {[%emt 0:10:15]} Ne7 {[%emt 0:05:43]} 18. Qf3 {[%emt 0:03:03]} c6 {[%emt 0:08:01]} 19. f5 {[%emt 0:06:38]} Qd7 {[%emt 0:09:29]} 20. Rf1 {[%emt 0:03:16]} d5 {[%emt 0:01:36]} 21. Qg4 {[%emt 0:01:12]} Ng8 {[%emt 0:05:18]} 22. cxd5 {[%emt 0:02:36]} Nh6 {[%emt 0:00:32]} 23. Qb4 {[%emt 0:00:27]} Rf7 {[%emt 0:01:31]} 24. d6 {[%emt 0:01:20]} b5 {[%emt 0:00:16]} 25. Bb1 {[%emt 0:01:50]} Rf8 {[%emt 0:02:38]} 26. Qd4 {[%emt 0:01:05]} Ba6 {[%emt 0:03:52]} 27. Bb4 {[%emt 0:01:47]} Rfe8 {[%emt 0:03:42]} 28. e4 {[%emt 0:01:13]} Rad8 {[%emt 0:03:20]} 29. Ba2 {[%emt 0:00:38]} Bc8 {[%emt 0:00:37]} 30. Rd1 {[%emt 0:00:43]} Nxf5 {[%emt 0:03:42]} 31. exf5 {[%emt 0:00:38]} Qxf5 {[%emt 0:00:05]} 32. Rf1 {[%emt 0:00:47]} Qe4 {[%emt 0:03:17]} 33. Qxe4 {[%emt 0:00:43]} Rxe4 {[%emt 0:00:04]} 34. Rd3 {[%emt 0:00:27]} Bg4 {[%emt 0:00:48]} 35. Rg3 {[%emt 0:00:37]} Bc8 {[%emt 0:00:43]} 36. Rc3 {[%emt 0:00:26]} Bd7 {[%emt 0:00:37]} 37. Rcc1 {[%emt 0:00:21]} Rde8 {[%emt 0:01:22]} 38. Rce1 {[%emt 0:00:27]} h6 {[%emt 0:00:32]} 39. Rxe4 {[%emt 0:00:16]} Rxe4 {[%emt 0:00:05]} 40. Re1 {[%emt 0:00:08]} Rxe1+ {[%emt 0:00:25]} 41. Bxe1 {[%emt 0:30:04]} Kh7 {[%emt 0:30:31]} 42. Kf2 {[%emt 0:00:00]} Kg6 {[%emt 0:00:00]} 43. Ke3 {[%emt 0:00:00]} c5 {[%emt 0:00:00]} 44. Ke4 {[%emt 0:00:00]} c4 {[%emt 0:00:00]} 45. Kd5 {[%emt 0:00:00]} Kf7 {[%emt 0:00:00]} 46. Bb1 {[%emt 0:00:00]} g6 {[%emt 0:00:00]} 47. Be4 {[%emt 0:00:00]} f5 {[%emt 0:00:00]} 48. Bf3 {[%emt 0:00:00]} Be8 {[%emt 0:00:00]} 49. Kc5 {[%emt 0:00:00]} Ke6 {[%emt 0:00:00]} 50. Bc6 {[%emt 0:00:00] normal Kd5+} 1-0

[Event "GER-ch Youth U18w 2019"]
[Site "Willingen"]
[Date "2019.06.09"]
[Round "1.3"]
[White "Alferova, Ekaterina"]
[Black "Ratay, Meike"]
[Result "0-1"]
[ECO "A45"]
[WhiteElo "1597"]
[BlackElo "1991"]
[Annotator "NA"]
[PlyCount "69"]
[EventDate "2019.06.07"]
[EventType "swiss"]
[EventRounds "9"]
[EventCountry "GER"]
[SourceTitle "playchess.com"]
[Source "ChessBase"]
[SourceQuality "1"]
[TimeControl "40/5400+30:1800+30"]

1. d4 {[%emt 0:00:00]} Nf6 {[%emt 0:00:00]} 2. Bf4 {[%emt 0:00:00]} d6 {[%emt 0:00:00]} 3. e3 {[%emt 0:00:21]} Nbd7 {[%emt 0:00:01]} 4. Nf3 {[%emt 0:00:23]} e6 {[%emt 0:00:23]} 5. Nbd2 {[%emt 0:00:43]} b6 {[%emt 0:00:36]} 6. h3 {[%emt 0:00:21]} Bb7 {[%emt 0:00:40]} 7. Bh2 {[%emt 0:03:20]} h6 {[%emt 0:02:38]} 8. Bd3 {[%emt 0:01:33]} Be7 {[%emt 0:04:18]} 9. Qe2 {[%emt 0:03:48]} c5 {[%emt 0:07:29]} 10. c3 {[%emt 0:00:31]} a6 {[%emt 0:06:27]} 11. O-O {[%emt 0:06:25]} g5 {[%emt 0:07:46]} 12. e4 {[%emt 0:11:17]} g4 {[%emt 0:07:25]} 13. hxg4 {[%emt 0:01:29]} Nxg4 {[%emt 0:00:07]} 14. Bg3 {[%emt 0:04:08]} h5 {[%emt 0:07:17]} 15. Nc4 {[%emt 0:24:00]} Ndf6 {[%emt 0:12:52]} 16. Rfe1 {[%emt 0:24:48]} b5 {[%emt 0:13:43]} 17. Nxd6+ {[%emt 0:06:51]} Bxd6 {[%emt 0:00:08]} 18. Bxd6 {[%emt 0:00:28]} Qxd6 {[%emt 0:00:12]} 19. e5 {[%emt 0:00:21]} Qd5 {[%emt 0:16:00]} 20. exf6 {[%emt 0:00:44]} cxd4 {[%emt 0:00:57]} 21. cxd4 {[%emt 0:00:44]} Nxf6 {[%emt 0:02:21]} 22. Qe5 {[%emt 0:04:26]} Ke7 {[%emt 0:01:01]} 23. Rac1 {[%emt 0:01:15]} Rac8 {[%emt 0:01:31]} 24. Rc7+ {[%emt 0:00:16]} Rxc7 {[%emt 0:01:07]} 25. Qxc7+ {[%emt 0:00:06]} Qd7 {[%emt 0:01:14]} 26. Qc5+ {[%emt 0:00:57]} Qd6 {[%emt 0:00:55]} 27. Ne5 {[%emt 0:03:18]} Rg8 {[%emt 0:03:19]} 28. f3 {[%emt 0:00:32]} Rd8 {[%emt 0:02:17]} 29. Qxd6+ {[%emt 0:00:49]} Rxd6 {[%emt 0:00:02]} 30. Kf2 {[%emt 0:00:27]} Rxd4 {[%emt 0:00:26]} 31. Ke3 {[%emt 0:00:38]} Rd8 {[%emt 0:00:50]} 32. Rc1 {[%emt 0:00:25]} Nd5+ {[%emt 0:00:36]} 33. Kf2 {[%emt 0:00:23]} Rc8 {[%emt 0:01:02]} 34. Rxc8 {[%emt 0:00:32]} Bxc8 {[%emt 0:00:01]} 35. a3 {[%emt 0:00:00] normal} 0-1

[Event "GER-ch Youth U18w 2019"]
[Site "Willingen"]
[Date "2019.06.09"]
[Round "1.4"]
[White "Arnhold, Steffi"]
[Black "Tampe, Friederike"]
[Result "1-0"]
[ECO "C50"]
[WhiteElo "1996"]
[BlackElo "1512"]
[Annotator "NA"]
[PlyCount "81"]
[EventDate "2019.06.07"]
[EventType "swiss"]
[EventRounds "9"]
[EventCountry "GER"]
[SourceTitle "playchess.com"]
[Source "ChessBase"]
[SourceQuality "1"]
[TimeControl "40/5400+30:1800+30"]

1. e4 {[%emt 0:00:00]} e5 {[%emt 0:00:00]} 2. Nf3 {[%emt 0:00:00]} Nc6 {[%emt 0:00:00]} 3. Bc4 {[%emt 0:00:00]} Bc5 {[%emt 0:00:00]} 4. d3 {[%emt 0:01:11]} h6 {[%emt 0:00:58]} 5. c3 {[%emt 0:01:35]} Nf6 {[%emt 0:00:31]} 6. Nbd2 {[%emt 0:02:17]} d6 {[%emt 0:01:31]} 7. a4 {[%emt 0:04:27]} a6 {[%emt 0:01:16]} 8. h3 {[%emt 0:03:01]} O-O {[%emt 0:02:31]} 9. Qe2 {[%emt 0:04:28]} Ba7 {[%emt 0:04:26]} 10. g4 {[%emt 0:11:30]} Nh7 {[%emt 0:06:33]} 11. Rg1 {[%emt 0:06:31]} Ne7 {[%emt 0:09:02]} 12. g5 {[%emt 0:13:58]} hxg5 {[%emt 0:07:23]} 13. Nxg5 {[%emt 0:03:43]} Nxg5 {[%emt 0:00:52]} 14. Rxg5 {[%emt 0:00:53]} g6 {[%emt 0:07:44]} 15. h4 {[%emt 0:07:16]} Kg7 {[%emt 0:04:38]} 16. Nf3 {[%emt 0:04:17]} Rh8 {[%emt 0:04:09]} 17. Be3 {[%emt 0:03:17]} Ng8 {[%emt 0:06:46]} 18. Rg1 {[%emt 0:06:53]} Nh6 {[%emt 0:13:49]} 19. Ng5 {[%emt 0:09:44]} Qe8 {[%emt 0:06:41]} 20. h5 {[%emt 0:03:36]} Bd7 {[%emt 0:06:09]} 21. Bxa7 {[%emt 0:00:58]} Rxa7 {[%emt 0:00:12]} 22. a5 {[%emt 0:01:26]} Qe7 {[%emt 0:02:59]} 23. hxg6 {[%emt 0:01:24]} fxg6 {[%emt 0:00:11]} 24. Kd2 {[%emt 0:00:27]} Raa8 {[%emt 0:00:34]} 25. Rg3 {[%emt 0:01:04]} Raf8 {[%emt 0:00:52]} 26. Rag1 {[%emt 0:00:40]} Rf6 {[%emt 0:00:40]} 27. Kc1 {[%emt 0:01:06]} Qf8 {[%emt 0:02:33]} 28. f3 {[%emt 0:00:29]} Qe8 {[%emt 0:02:43]} 29. Qg2 {[%emt 0:00:22]} Kf8 {[%emt 0:01:30]} 30. Rh1 {[%emt 0:02:15]} Ke7 {[%emt 0:00:41]} 31. Rh4 {[%emt 0:00:54]} Qf8 {[%emt 0:02:33]} 32. Qh1 {[%emt 0:00:56]} Rf4 {[%emt 0:01:44]} 33. Rh2 {[%emt 0:01:10]} Qg7 {[%emt 0:01:09]} 34. Nh3 {[%emt 0:00:49]} Rh4 {[%emt 0:00:33]} 35. Qg2 {[%emt 0:00:36]} Be8 {[%emt 0:00:26]} 36. Ng5 {[%emt 0:01:33]} Rxh2 {[%emt 0:00:11]} 37. Qxh2 {[%emt 0:00:04]} Bd7 {[%emt 0:00:10]} 38. Qg2 {[%emt 0:00:16]} Qf6 {[%emt 0:01:02]} 39. Kd1 {[%emt 0:01:05]} Rf8 {[%emt 0:00:38]} 40. Nh7 {[%emt 0:00:20]} Be8 {[%emt 0:00:50]} 41. Nxf6 {[%emt 0:30:06] normal} 1-0

[Event "GER-ch Youth U18w 2019"]
[Site "Willingen"]
[Date "2019.06.09"]
[Round "1.5"]
[White "Gauchel, Verena"]
[Black "Moenster, Madita"]
[Result "0-1"]
[ECO "A60"]
[WhiteElo "1534"]
[BlackElo "1994"]
[Annotator "NA"]
[PlyCount "34"]
[EventDate "2019.06.07"]
[EventType "swiss"]
[EventRounds "9"]
[EventCountry "GER"]
[SourceTitle "playchess.com"]
[Source "ChessBase"]
[SourceQuality "1"]
[TimeControl "40/5400+30:1800+30"]

1. d4 {[%emt 0:00:00]} Nf6 {[%emt 0:00:00]} 2. c4 {[%emt 0:00:00]} c5 {[%emt 0:00:13]} 3. d5 {[%emt 0:01:28]} e6 {[%emt 0:00:25]} 4. Nc3 {[%emt 0:05:46]} exd5 {[%emt 0:00:21]} 5. Nxd5 {[%emt 0:02:56]} Nxd5 {[%emt 0:10:24]} 6. Qxd5 {[%emt 0:04:44]} Nc6 {[%emt 0:03:08]} 7. Nf3 {[%emt 0:06:35]} d6 {[%emt 0:04:32]} 8. b3 {[%emt 0:15:14]} Be7 {[%emt 0:06:36]} 9. Bb2 {[%emt 0:05:36]} O-O {[%emt 0:07:04]} 10. g3 {[%emt 0:05:25]} Nb4 {[%emt 0:05:33]} 11. Qe4 {[%emt 0:03:32]} Bf6 {[%emt 0:05:33]} 12. Qb1 {[%emt 0:06:00]} Bf5 {[%emt 0:06:04]} 13. Qxf5 {[%emt 0:04:06]} Bxb2 {[%emt 0:00:10]} 14. Rd1 {[%emt 0:04:14]} Bc3+ {[%emt 0:04:21]} 15. Nd2 {[%emt 0:04:17]} Qf6 {[%emt 0:10:05]} 16. Qb1 {[%emt 0:02:45]} Rae8 {[%emt 0:04:46]} 17. a3 {[%emt 0:03:00] normal} Qf3 {[%emt 0:02:47] normal} 0-1

[Event "GER-ch Youth U18w 2019"]
[Site "Willingen"]
[Date "2019.06.09"]
[Round "1.6"]
[White "Poetsch, Leonore"]
[Black "Schneider, Xenia"]
[Result "1-0"]
[ECO "B10"]
[WhiteElo "1982"]
[BlackElo "1364"]
[Annotator "NA"]
[PlyCount "107"]
[EventDate "2019.06.07"]
[EventType "swiss"]
[EventRounds "9"]
[EventCountry "GER"]
[SourceTitle "playchess.com"]
[Source "ChessBase"]
[SourceQuality "1"]
[TimeControl "40/5400+30:1800+30"]

1. e4 {[%emt 0:00:00]} c6 {[%emt 0:00:00]} 2. Nf3 {[%emt 0:00:00]} d5 {[%emt 0:00:00]} 3. Nc3 {[%emt 0:00:00]} dxe4 {[%emt 0:00:00]} 4. Nxe4 {[%emt 0:00:00]} Nf6 {[%emt 0:00:04]} 5. Ng3 {[%emt 0:00:39]} h5 {[%emt 0:00:50]} 6. Bc4 {[%emt 0:04:40]} h4 {[%emt 0:00:40]} 7. Ne2 {[%emt 0:01:18]} b5 {[%emt 0:01:33]} 8. Bb3 {[%emt 0:00:54]} c5 {[%emt 0:00:49]} 9. d3 {[%emt 0:01:22]} Bb7 {[%emt 0:01:33]} 10. Nf4 {[%emt 0:06:03]} Nd5 {[%emt 0:19:37]} 11. h3 {[%emt 0:03:11]} e6 {[%emt 0:04:29]} 12. O-O {[%emt 0:01:30]} Be7 {[%emt 0:03:27]} 13. a4 {[%emt 0:03:01]} a6 {[%emt 0:00:34]} 14. Re1 {[%emt 0:07:40]} O-O {[%emt 0:05:51]} 15. Qe2 {[%emt 0:04:53]} Nxf4 {[%emt 0:08:27]} 16. Bxf4 {[%emt 0:00:10]} Bf6 {[%emt 0:00:54]} 17. Ne5 {[%emt 0:05:29]} Qe7 {[%emt 0:10:03]} 18. Qh5 {[%emt 0:05:18]} Nc6 {[%emt 0:06:59]} 19. Nxf7 {[%emt 0:08:06]} c4 {[%emt 0:02:05]} 20. Ng5 {[%emt 0:01:42]} Bxg5 {[%emt 0:00:29]} 21. Bxg5 {[%emt 0:00:08]} Qc5 {[%emt 0:00:18]} 22. Qxh4 {[%emt 0:06:29]} cxb3 {[%emt 0:02:09]} 23. cxb3 {[%emt 0:01:55]} Nd4 {[%emt 0:03:38]} 24. Rac1 {[%emt 0:11:22]} Qd5 {[%emt 0:00:34]} 25. Qg3 {[%emt 0:02:28]} Rf7 {[%emt 0:05:35]} 26. axb5 {[%emt 0:03:53]} Nf3+ {[%emt 0:04:53]} 27. gxf3 {[%emt 0:00:35]} Rxf3 {[%emt 0:00:09]} 28. Qe5 {[%emt 0:00:49]} Rg3+ {[%emt 0:00:22]} 29. Kf1 {[%emt 0:01:54]} Qg2+ {[%emt 0:05:29]} 30. Ke2 {[%emt 0:00:18]} Rxg5 {[%emt 0:02:33]} 31. Qxe6+ {[%emt 0:01:23]} Kh8 {[%emt 0:00:45]} 32. Qe3 Rf5 {[%emt 0:02:05]} 33. bxa6 {[%emt 0:06:41]} Bf3+ {[%emt 0:01:39]} 34. Kd2 {[%emt 0:00:20]} Bh5 {[%emt 0:00:35]} 35. Rf1 {[%emt 0:04:08]} Re8 {[%emt 0:01:17]} 36. Qb6 {[%emt 0:01:32]} Qg5+ {[%emt 0:02:24]} 37. Kc2 Rc8+ {[%emt 0:00:31]} 38. Kb1 {[%emt 0:01:44]} Rxc1+ {[%emt 0:00:30]} 39. Rxc1 {[%emt 0:00:04]} Qd2 {[%emt 0:02:29]} 40. Qe3 Qb4 {[%emt 0:00:31]} 41. a7 {[%emt 0:34:58]} Rf8 42. Qc5 {[%emt 0:00:00]} Qxc5 {[%emt 0:03:47]} 43. Rxc5 Bg6 44. Kc2 {[%emt 0:00:00]} Rxf2+ {[%emt 0:00:59]} 45. Kc3 {[%emt 0:00:00]} Rf8 {[%emt 0:00:08]} 46. Rb5 Kh7 {[%emt 0:05:50]} 47. Rb8 {[%emt 0:00:00]} Rf3 {[%emt 0:00:18]} 48. a8=Q {[%emt 0:00:00]} Rxd3+ {[%emt 0:00:15]} 49. Kc4 {[%emt 0:00:00]} Bf5 {[%emt 0:00:42]} 50. Rh8+ {[%emt 0:00:00]} Kg6 {[%emt 0:00:07]} 51. h4 {[%emt 0:00:00]} Re3 {[%emt 0:00:40]} 52. h5+ {[%emt 0:00:00]} Kg5 {[%emt 0:00:16]} 53. Qg2+ {[%emt 0:00:00]} Bg4 {[%emt 0:00:24]} 54. Qd2 {[%emt 0:00:00] normal} 1-0

[Event "GER-ch Youth U18w 2019"]
[Site "Willingen"]
[Date "2019.06.09"]
[Round "1.7"]
[White "Peters, Jenna Maria Lara"]
[Black "Möller, Lisa-Marie"]
[Result "0-1"]
[ECO "B20"]
[WhiteElo "1594"]
[BlackElo "1900"]
[Annotator "NA"]
[PlyCount "106"]
[EventDate "2019.06.07"]
[EventType "swiss"]
[EventRounds "9"]
[EventCountry "GER"]
[SourceTitle "playchess.com"]
[Source "ChessBase"]
[SourceQuality "1"]
[TimeControl "40/5400+30:1800+30"]

1. e4 {[%emt 0:00:00]} c5 {[%emt 0:00:00]} 2. b3 {[%emt 0:00:00]} Nc6 {[%emt 0:00:16]} 3. Bb5 {[%emt 0:00:00]} Nd4 {[%emt 0:06:36]} 4. Nc3 {[%emt 0:02:26]} Nxb5 {[%emt 0:02:52]} 5. Nxb5 {[%emt 0:00:10]} a6 {[%emt 0:01:46]} 6. Nc3 {[%emt 0:00:53]} g6 {[%emt 0:02:44]} 7. Nge2 {[%emt 0:01:30]} Bg7 {[%emt 0:02:52]} 8. Bb2 {[%emt 0:01:34]} d6 {[%emt 0:02:20]} 9. O-O {[%emt 0:01:26]} b5 {[%emt 0:05:44]} 10. a3 {[%emt 0:07:46]} Bb7 {[%emt 0:02:55]} 11. d3 {[%emt 0:01:31]} Nf6 {[%emt 0:01:36]} 12. f4 {[%emt 0:03:21]} O-O {[%emt 0:01:36]} 13. Ng3 {[%emt 0:02:18]} Rc8 {[%emt 0:07:55]} 14. Nce2 {[%emt 0:05:01]} Nxe4 {[%emt 0:07:42]} 15. Bxg7 Nxg3 {[%emt 0:01:48]} 16. Bxf8 {[%emt 0:04:14]} Nxf1 {[%emt 0:00:16]} 17. Bxe7 {[%emt 0:00:22]} Qxe7 {[%emt 0:00:22]} 18. Qxf1 {[%emt 0:00:24]} c4 {[%emt 0:05:52]} 19. dxc4 {[%emt 0:04:59]} bxc4 {[%emt 0:01:28]} 20. Nd4 {[%emt 0:09:20]} Qe4 {[%emt 0:04:34]} 21. Qf2 {[%emt 0:05:37]} cxb3 {[%emt 0:03:55]} 22. cxb3 {[%emt 0:02:07]} Rc3 {[%emt 0:02:49]} 23. Rd1 {[%emt 0:05:41]} Rd3 {[%emt 0:05:26]} 24. Rd2 {[%emt 0:15:05]} Re3 {[%emt 0:05:00]} 25. h3 {[%emt 0:04:37]} Bd5 {[%emt 0:12:45]} 26. Nc2 {[%emt 0:04:02]} Rxb3 {[%emt 0:03:25]} 27. Qd4 {[%emt 0:01:24]} Rb1+ {[%emt 0:03:39]} 28. Kh2 {[%emt 0:00:47]} Qxd4 {[%emt 0:00:35]} 29. Rxd4 {[%emt 0:00:25]} Bb7 {[%emt 0:04:27]} 30. Rxd6 {[%emt 0:02:53]} Rb2 {[%emt 0:00:37]} 31. Ne3 {[%emt 0:02:55]} Rb3 {[%emt 0:00:56]} 32. Nc4 {[%emt 0:01:21]} Rc3 {[%emt 0:00:19]} 33. Na5 {[%emt 0:10:31]} Be4 {[%emt 0:00:39]} 34. Rd4 {[%emt 0:01:40]} f5 {[%emt 0:00:34]} 35. Ra4 {[%emt 0:00:37]} Rc2 {[%emt 0:00:24]} 36. Nc4 {[%emt 0:00:31]} Rxg2+ {[%emt 0:00:22]} 37. Kh1 {[%emt 0:00:05]} Rf2+ {[%emt 0:00:48]} 38. Kg1 {[%emt 0:00:06]} Rxf4 {[%emt 0:00:27]} 39. Rxa6 {[%emt 0:00:19]} Bb7 {[%emt 0:00:30]} 40. Ra4 {[%emt 0:00:24]} Bd5 {[%emt 0:00:30]} 41. Nb6 {[%emt 0:30:05]} Rxa4 {[%emt 0:30:28]} 42. Nxa4 {[%emt 0:00:06]} Kf7 {[%emt 0:00:00]} 43. Nb6 {[%emt 0:00:00]} Ke6 {[%emt 0:00:00]} 44. a4 {[%emt 0:00:00]} Kd6 {[%emt 0:00:00]} 45. a5 {[%emt 0:00:00]} Bb7 {[%emt 0:00:00]} 46. Kf2 {[%emt 0:00:00]} g5 {[%emt 0:00:00]} 47. Kg3 {[%emt 0:00:00]} h5 {[%emt 0:00:00]} 48. h4 {[%emt 0:00:00]} f4+ {[%emt 0:00:00]} 49. Kh3 {[%emt 0:00:00]} g4+ {[%emt 0:00:00]} 50. Kh2 {[%emt 0:00:00]} g3+ {[%emt 0:00:00]} 51. Kg1 {[%emt 0:00:00]} f3 {[%emt 0:00:00]} 52. Nc4+ {[%emt 0:00:00]} Ke6 {[%emt 0:00:00]} 53. Kf1 {[%emt 0:00:00]} Ba6 {[%emt 0:00:00] normal} 0-1

[Event "GER-ch Youth U18w 2019"]
[Site "Willingen"]
[Date "2019.06.09"]
[Round "1.8"]
[White "Köhler, Inken"]
[Black "Fuchs, Emily"]
[Result "1-0"]
[ECO "A17"]
[WhiteElo "1979"]
[BlackElo "1384"]
[Annotator "NA"]
[PlyCount "61"]
[EventDate "2019.06.07"]
[EventType "swiss"]
[EventRounds "9"]
[EventCountry "GER"]
[SourceTitle "playchess.com"]
[Source "ChessBase"]
[SourceQuality "1"]
[TimeControl "40/5400+30:1800+30"]

1. c4 {[%emt 0:00:00]} Nf6 {[%emt 0:00:00]} 2. Nc3 {[%emt 0:00:00]} e6 {[%emt 0:00:08]} 3. g3 {[%emt 0:00:24]} d5 {[%emt 0:04:36]} 4. cxd5 {[%emt 0:00:20]} exd5 {[%emt 0:00:29]} 5. Bg2 {[%emt 0:00:42]} Be6 {[%emt 0:02:42]} 6. d3 {[%emt 0:03:18]} Nc6 {[%emt 0:05:19]} 7. Nf3 {[%emt 0:04:38]} Bb4 {[%emt 0:21:04]} 8. O-O {[%emt 0:02:03]} O-O {[%emt 0:02:31]} 9. Bf4 {[%emt 0:05:41]} Bd6 {[%emt 0:04:06]} 10. Bxd6 {[%emt 0:12:51]} Qxd6 {[%emt 0:01:25]} 11. d4 {[%emt 0:02:03]} Rfe8 {[%emt 0:07:20]} 12. Rc1 {[%emt 0:06:36]} Bg4 {[%emt 0:08:03]} 13. h3 {[%emt 0:13:00]} Bh5 {[%emt 0:01:49]} 14. Na4 {[%emt 0:04:33]} Re7 {[%emt 0:03:52]} 15. Nc5 {[%emt 0:01:58]} b6 {[%emt 0:08:57]} 16. Nb3 {[%emt 0:05:25]} Nd8 {[%emt 0:01:49]} 17. e3 {[%emt 0:03:22]} Ne4 {[%emt 0:04:40]} 18. Qc2 {[%emt 0:04:17]} Ne6 {[%emt 0:03:27]} 19. Nh4 {[%emt 0:03:34]} Qd7 {[%emt 0:08:46]} 20. Bxe4 {[%emt 0:02:20]} dxe4 {[%emt 0:00:36]} 21. Qxe4 {[%emt 0:00:31]} Rd8 {[%emt 0:01:19]} 22. Qg2 {[%emt 0:01:35]} Qa4 {[%emt 0:01:38]} 23. d5 {[%emt 0:04:36]} Nf8 {[%emt 0:02:05]} 24. Nd4 {[%emt 0:01:16]} Red7 {[%emt 0:02:18]} 25. a3 {[%emt 0:02:08]} f6 {[%emt 0:01:00]} 26. Ne6 {[%emt 0:05:10]} Nxe6 {[%emt 0:00:15]} 27. dxe6 {[%emt 0:00:02]} Rd2 {[%emt 0:01:13]} 28. Rxc7 {[%emt 0:01:16]} Be8 {[%emt 0:01:24]} 29. Nf5 {[%emt 0:01:26]} g6 {[%emt 0:00:35]} 30. Nh6+ {[%emt 0:00:31]} Kh8 {[%emt 0:00:29]} 31. Qb7 {[%emt 0:00:29] normal} 1-0